{"text_format":"1","workbook":"xlsx","n_sheets":4,"sheets":["Produktionsanlæg","Distributionsanlæg","Fællesfunktionsanlæg","Drop downliste"],"not_rendered":{"charts":0,"images":0,"macros":1,"external_links":0,"defined_names":2,"comments":0,"pivot_tables":0},"unopened":[],"bounds":{"document_bytes":16777216,"sheet_cells":100000,"rows_first":2000,"rows_last":500,"rows_between":2000,"halvings":0,"cell_chars":16384,"cell_head_chars":4096},"cells_cut":0,"cells_raw":0,"read":"whole","date_system":"1900"}

{"sheet":"Produktionsanlæg","index":0,"n_rows":423,"n_cols":6,"rows_kept":423,"cut":false,"hidden":false,"merged":[[0,5,1,5],[0,0,1,0],[0,1,1,1],[0,2,1,2],[0,3,1,3],[0,4,1,4]]}
["Produktionsanlæg","Enhed","Standard-levetid","Samlet mængde per 31/12-2014","Samlet mængde per 31/12-2015","Bemærk-ninger"]
[]
["Boringer"]
["Boring (inkl. etablering, forerør, filter og prøvepumpning)","dybdemeter",30,2154,2154]
["Råvandsstationer"]
["Råvandsstation komplet montering og boringshus/tørbrønd","stk.",30,27,27]
["Instrumenter (flowmåler+tryk transducer+alarmer)","stk.",10,24,24]
["Pumpe inkl. stigrør og forerørsforsejlinger mv. - 1","m³/h ",15,60,60,"DGU 121-589 boring 1 "]
["Pumpe inkl. stigrør og forerørsforsejlinger mv. - 2","m³/h ",15,45,45,"DGU 121-183 boring 2"]
["Pumpe inkl. stigrør og forerørsforsejlinger mv. - 3","m³/h ",15,30,30,"DGU 121-1500 boring3"]
["Pumpe inkl. stigrør og forerørsforsejlinger mv. - 4","m³/h ",15,30,30,"DGU 121-977 boring 4"]
["Pumpe inkl. stigrør og forerørsforsejlinger mv. - 5","m³/h ",15,46,60,"DGU 121-906 boring 5"]
["Pumpe inkl. stigrør og forerørsforsejlinger mv. - 6","m³/h ",15,27,17,"DGU 121-1046 boring 6"]
["Pumpe inkl. stigrør og forerørsforsejlinger mv. - 7","m³/h ",15,30,30,"DGU 121-947 boring 8"]
["Pumpe inkl. stigrør og forerørsforsejlinger mv. - 8","m³/h ",15,30,30,"DGU 121-1374 boring 9 (overboring af 12.437)"]
["Pumpe inkl. stigrør og forerørsforsejlinger mv. - 9","m³/h ",15,30,30,"DGU 121-438 boring 10"]
["Pumpe inkl. stigrør og forerørsforsejlinger mv. - 10","m³/h ",15,30,30,"DGU 121-1165 boring 11"]
["Pumpe inkl. stigrør og forerørsforsejlinger mv. - 11","m³/h ",15,46,17,"DGU 121-1562"]
["Pumpe inkl. stigrør og forerørsforsejlinger mv. - 12","m³/h ",15,17,17,"DGU 121-1563"]
["Pumpe inkl. stigrør og forerørsforsejlinger mv. - 13","m³/h ",15,7,40,"Afværgeboring 9- DGU 121-1374"]
["Pumpe inkl. stigrør og forerørsforsejlinger mv. - 14","m³/h ",15,7,40,"Afværgeboring 11 DGU 121-1165"]
["Pumpe inkl. stigrør og forerørsforsejlinger mv. - 15","m³/h ",15,7,7,"Afværgeboring 12 DGU 121.1015"]
["Pumpe inkl. stigrør og forerørsforsejlinger mv. - 16","m³/h ",15,7,7,"Afværgeboring 13 DGU 121.644"]
["Pumpe inkl. stigrør og forerørsforsejlinger mv. - 17","m³/h ",15,30,30,"DGU 121-648 boring 1"]
["Pumpe inkl. stigrør og forerørsforsejlinger mv. - 18","m³/h ",15,70,70,"DGU 121-649 boring  2"]
["Pumpe inkl. stigrør og forerørsforsejlinger mv. - 19","m³/h ",15,30,30,"DGU 112-597 foran v.værk"]
["Pumpe inkl. stigrør og forerørsforsejlinger mv. - 20","m³/h ",15,30,30,"DGU 112-959 mark tættest vej"]
["Pumpe inkl. stigrør og forerørsforsejlinger mv. - 21","m³/h ",15,30,30,"DGU 112-960 mark længst væk"]
["Pumpe inkl. stigrør og forerørsforsejlinger mv. - 22","m³/h ",15,30,30,"DGU 112-1027 bag v.værk"]
["Erstatninger (OBS ingen øst-tillæg eller øvrige tillæg) ","stk.",30,0,0]
["Hegn","stk.",15,0,0]
["Elanlæg","boring",20,26,26]
["SRO anlæg","boring",10,7,7]
["Råvandsledninger - Land"]
["Ø 50mm < Ledningsnet ≤ Ø110 mm","meter",75,308.5,308.5]
["Ø110 mm < Ledningsnet ≤ Ø 250 mm","meter",75,321.3,321.3]
["Ø 250 mm < Ledningsnet ≤ Ø 500mm","meter",75,2550,2550]
["Ledningsnet > Ø 500 mm","meter",75,436.55,436.55]
["Råvandsledninger - By"]
["Ø 50mm < Ledningsnet ≤ Ø110 mm","meter",75,124.4,124.4]
["Ø110 mm < Ledningsnet ≤ Ø 250 mm","meter",75,743.7,743.7]
["Ø 250 mm < Ledningsnet ≤ Ø 500mm","meter",75,4281.6000000000004,4281.6000000000004]
["Ledningsnet > Ø 500 mm","meter",75,0,0]
["Råvandsledninger - City"]
["Ø 50mm < Ledningsnet ≤ Ø110 mm","meter",75,0,0]
["Ø110 mm < Ledningsnet ≤ Ø 250 mm","meter",75,0,0]
["Ø 250 mm < Ledningsnet ≤ Ø 500mm","meter",75,0,0]
["Ledningsnet > Ø 500 mm","meter",75,0,0]
["Vandværk 1"]
["Beluftningsanlæg, iltningstrappe, Konstruktioner","m³/h ",50,120,120]
["Beluftningsanlæg, iltningstrappe, Mek./EL","m³/h ",25,120,120]
["Beluftningsanlæg, ika-beluftning, Konstruktioner","m³/h ",50,0,0]
["Beluftningsanlæg, ika-beluftning, Mek./EL","m³/h ",25,0,0]
["Beluftningsanlæg, bundbeluftbning, Konstruktioner","m³/h ",50,0,0]
["Beluftningsanlæg, bundbeluftbning, Mek./EL","m³/h ",25,0,0]
["Beluftningsanlæg, rislebakke, Konstruktioner","m³/h ",50,0,0]
["Beluftningsanlæg, rislebakke, Mek./EL","m³/h ",25,0,0]
["Beluftningsanlæg, kompressorbeluftning","m³/h ",25,0,0]
["Beluftningsanlæg, ren ilt","m³/h ",25,0,0]
["Behandlingsanlæg, kalk anlæg","m³/h ",25,120,120]
["Behandlingsanlæg, luddosering","m³/h ",25,0,0]
["Filteranlæg, åbne filtre, enkelt filtrering, Konstruktioner","m³/h ",50,0,0]
["Filteranlæg, åbne filtre, enkelt filtrering, Mek./EL","m³/h ",25,0,0]
["Filteranlæg, åbne filtre, dobbelt filtrering, Konstruktioner","m³/h ",50,120,120]
["Filteranlæg, åbne filtre, dobbelt filtrering, Mek./EL","m³/h ",25,120,120]
["Filteranlæg, trykfiltre, enkelt filtrering","m³/h ",25,0,0]
["Filteranlæg, trykfiltre, dobbelt filtrering","m³/h ",25,0,0]
["Rentvandsbeholder  insitu støbt","m³",50,100,100]
["Rentvandsbeholder  element","m³",50,0,0]
["Udpumpningsanlæg, rentvandspumper på vandværk","m³/h ",25,120,120]
["Udpumpningsanlæg, frekvensomformer","kW",25,32,32]
["Udpumpningsanlæg, Hydrofor","liter",25,0,0]
["Skyllevand-/slamhåndteringsanlæg - lukkede betonbeholdere","m³",50,0,0]
["Skyllevand-/slamhåndteringsanl. - åbne med faste sider/bund","m³",50,0,0]
["Skyllevand-/slamhåndteringsanlæg - jordbassiner","m³",50,0,0]
["Skyllevandsbehandling, inkl. UV-filter mv., Mek./EL","m³/h.",25,0,0]
["Skyllevandsbehandling, inkl. UV-filter mv., SRO","m³/h.",10,0,0]
["Nødstrømsanlæg på vandværk","kW",25,0,0]
["Elanlæg og SRO-anlæg - vandværk, Elanlæg","m³/h.",25,120,120]
["Elanlæg og SRO-anlæg - vandværk, SRO","m³/h.",10,{"$f":"120+500","v":620},{"$f":"120+500","v":620}]
["Vandværk 2"]
["Beluftningsanlæg, iltningstrappe, Konstruktioner","m³/h ",50,{"$f":"390+390","v":780},{"$f":"390+390","v":780}]
["Beluftningsanlæg, iltningstrappe, Mek./EL","m³/h ",25,{"$f":"390+390","v":780},{"$f":"390+390","v":780}]
["Beluftningsanlæg, ika-beluftning, Konstruktioner","m³/h ",50,0,0]
["Beluftningsanlæg, ika-beluftning, Mek./EL","m³/h ",25,0,0]
["Beluftningsanlæg, bundbeluftbning, Konstruktioner","m³/h ",50,0,0]
["Beluftningsanlæg, bundbeluftbning, Mek./EL","m³/h ",25,0,0]
["Beluftningsanlæg, rislebakke, Konstruktioner","m³/h ",50,0,0]
["Beluftningsanlæg, rislebakke, Mek./EL","m³/h ",25,0,0]
["Beluftningsanlæg, kompressorbeluftning","m³/h ",25,0,0]
["Beluftningsanlæg, ren ilt","m³/h ",25,0,0]
["Behandlingsanlæg, kalk anlæg","m³/h ",25,780,780]
["Behandlingsanlæg, luddosering","m³/h ",25,0,0]
["Filteranlæg, åbne filtre, enkelt filtrering, Konstruktioner","m³/h ",50,0,0]
["Filteranlæg, åbne filtre, enkelt filtrering, Mek./EL","m³/h ",25,0,0]
["Filteranlæg, åbne filtre, dobbelt filtrering, Konstruktioner","m³/h ",50,780,780]
["Filteranlæg, åbne filtre, dobbelt filtrering, Mek./EL","m³/h ",25,{"$f":"390+390","v":780},{"$f":"390+390","v":780}]
["Filteranlæg, trykfiltre, enkelt filtrering","m³/h ",25,0,0]
["Filteranlæg, trykfiltre, dobbelt filtrering","m³/h ",25,0,0]
["Rentvandsbeholder  insitu støbt","m³",50,{"$f":"3000","v":3000},{"$f":"3000","v":3000}]
["Rentvandsbeholder  element","m³",50,0,0]
["Udpumpningsanlæg, rentvandspumper på vandværk","m³/h ",25,{"$f":"390+390","v":780},{"$f":"390+390","v":780}]
["Udpumpningsanlæg, frekvensomformer","kW",25,{"$f":"81+113","v":194},{"$f":"81+113","v":194}]
["Udpumpningsanlæg, Hydrofor","liter",25,9000,9000]
["Skyllevand-/slamhåndteringsanlæg - lukkede betonbeholdere","m³",50,258,258]
["Skyllevand-/slamhåndteringsanl. - åbne med faste sider/bund","m³",50,0,0]
["Skyllevand-/slamhåndteringsanlæg - jordbassiner","m³",50,0,0]
["Skyllevandsbehandling, inkl. UV-filter mv., Mek./EL","m³/h.",25,0,650]
["Skyllevandsbehandling, inkl. UV-filter mv., SRO","m³/h.",10,0,650]
["Nødstrømsanlæg på vandværk","kW",25,182,182]
["Elanlæg og SRO-anlæg - vandværk, Elanlæg","m³/h.",25,{"$f":"780+390","v":1170},{"$f":"780+390","v":1170}]
["Elanlæg og SRO-anlæg - vandværk, SRO","m³/h.",10,{"$f":"780+390","v":1170},{"$f":"780+390","v":1170}]
["Vandværk 3"]
["Beluftningsanlæg, iltningstrappe, Konstruktioner","m³/h ",50,70,70]
["Beluftningsanlæg, iltningstrappe, Mek./EL","m³/h ",25,70,70]
["Beluftningsanlæg, ika-beluftning, Konstruktioner","m³/h ",50,0,0]
["Beluftningsanlæg, ika-beluftning, Mek./EL","m³/h ",25,0,0]
["Beluftningsanlæg, bundbeluftbning, Konstruktioner","m³/h ",50,0,0]
["Beluftningsanlæg, bundbeluftbning, Mek./EL","m³/h ",25,0,0]
["Beluftningsanlæg, rislebakke, Konstruktioner","m³/h ",50,0,0]
["Beluftningsanlæg, rislebakke, Mek./EL","m³/h ",25,0,0]
["Beluftningsanlæg, kompressorbeluftning","m³/h ",25,0,0]
["Beluftningsanlæg, ren ilt","m³/h ",25,0,0]
["Behandlingsanlæg, kalk anlæg","m³/h ",25,0,0]
["Behandlingsanlæg, luddosering","m³/h ",25,0,0]
["Filteranlæg, åbne filtre, enkelt filtrering, Konstruktioner","m³/h ",50,0,0]
["Filteranlæg, åbne filtre, enkelt filtrering, Mek./EL","m³/h ",25,0,0]
["Filteranlæg, åbne filtre, dobbelt filtrering, Konstruktioner","m³/h ",50,70,70]
["Filteranlæg, åbne filtre, dobbelt filtrering, Mek./EL","m³/h ",25,70,70]
["Filteranlæg, trykfiltre, enkelt filtrering","m³/h ",25,0,0]
["Filteranlæg, trykfiltre, dobbelt filtrering","m³/h ",25,4,4]
["Rentvandsbeholder  insitu støbt","m³",50,300,300]
["Rentvandsbeholder  element","m³",50,0,0]
["Udpumpningsanlæg, rentvandspumper på vandværk","m³/h ",25,70,70]
["Udpumpningsanlæg, frekvensomformer","kW",25,9,9]
["Udpumpningsanlæg, Hydrofor","liter",25,0,0]
["Skyllevand-/slamhåndteringsanlæg - lukkede betonbeholdere","m³",50,40,40]
["Skyllevand-/slamhåndteringsanl. - åbne med faste sider/bund","m³",50,0,0]
["Skyllevand-/slamhåndteringsanlæg - jordbassiner","m³",50,0,0]
["Skyllevandsbehandling, inkl. UV-filter mv., Mek./EL","m³/h.",25,0,0]
["Skyllevandsbehandling, inkl. UV-filter mv., SRO","m³/h.",10,0,0]
["Nødstrømsanlæg på vandværk","kW",25,0,0]
["Elanlæg og SRO-anlæg - vandværk, Elanlæg","m³/h.",25,70,70]
["Elanlæg og SRO-anlæg - vandværk, SRO","m³/h.",10,{"$f":"70+50","v":120},{"$f":"70+50","v":120}]
["Vandværk 4"]
["Beluftningsanlæg, iltningstrappe, Konstruktioner","m³/h ",50,0]
["Beluftningsanlæg, iltningstrappe, Mek./EL","m³/h ",25,0]
["Beluftningsanlæg, ika-beluftning, Konstruktioner","m³/h ",50,0]
["Beluftningsanlæg, ika-beluftning, Mek./EL","m³/h ",25,0]
["Beluftningsanlæg, bundbeluftbning, Konstruktioner","m³/h ",50,0]
["Beluftningsanlæg, bundbeluftbning, Mek./EL","m³/h ",25,0]
["Beluftningsanlæg, rislebakke, Konstruktioner","m³/h ",50,0]
["Beluftningsanlæg, rislebakke, Mek./EL","m³/h ",25,0]
["Beluftningsanlæg, kompressorbeluftning","m³/h ",25,0]
["Beluftningsanlæg, ren ilt","m³/h ",25,0]
["Behandlingsanlæg, kalk anlæg","m³/h ",25,0]
["Behandlingsanlæg, luddosering","m³/h ",25,0]
["Filteranlæg, åbne filtre, enkelt filtrering, Konstruktioner","m³/h ",50,0]
["Filteranlæg, åbne filtre, enkelt filtrering, Mek./EL","m³/h ",25,0]
["Filteranlæg, åbne filtre, dobbelt filtrering, Konstruktioner","m³/h ",50,0]
["Filteranlæg, åbne filtre, dobbelt filtrering, Mek./EL","m³/h ",25,0]
["Filteranlæg, trykfiltre, enkelt filtrering","m³/h ",25,0]
["Filteranlæg, trykfiltre, dobbelt filtrering","m³/h ",25,0]
["Rentvandsbeholder  insitu støbt","m³",50,0]
["Rentvandsbeholder  element","m³",50,0]
["Udpumpningsanlæg, rentvandspumper på vandværk","m³/h ",25,0]
["Udpumpningsanlæg, frekvensomformer","kW",25,0]
["Udpumpningsanlæg, Hydrofor","liter",25,0]
["Skyllevand-/slamhåndteringsanlæg - lukkede betonbeholdere","m³",50,0]
["Skyllevand-/slamhåndteringsanl. - åbne med faste sider/bund","m³",50,0]
["Skyllevand-/slamhåndteringsanlæg - jordbassiner","m³",50,0]
["Skyllevandsbehandling, inkl. UV-filter mv., Mek./EL","m³/h.",25,0]
["Skyllevandsbehandling, inkl. UV-filter mv., SRO","m³/h.",10,0]
["Nødstrømsanlæg på vandværk","kW",25,0]
["Elanlæg og SRO-anlæg - vandværk, Elanlæg","m³/h.",25,0]
["Elanlæg og SRO-anlæg - vandværk, SRO","m³/h.",10,0]
["Vandværk 5"]
["Beluftningsanlæg, iltningstrappe, Konstruktioner","m³/h ",50,0]
["Beluftningsanlæg, iltningstrappe, Mek./EL","m³/h ",25,0]
["Beluftningsanlæg, ika-beluftning, Konstruktioner","m³/h ",50,0]
["Beluftningsanlæg, ika-beluftning, Mek./EL","m³/h ",25,0]
["Beluftningsanlæg, bundbeluftbning, Konstruktioner","m³/h ",50,0]
["Beluftningsanlæg, bundbeluftbning, Mek./EL","m³/h ",25,0]
["Beluftningsanlæg, rislebakke, Konstruktioner","m³/h ",50,0]
["Beluftningsanlæg, rislebakke, Mek./EL","m³/h ",25,0]
["Beluftningsanlæg, kompressorbeluftning","m³/h ",25,0]
["Beluftningsanlæg, ren ilt","m³/h ",25,0]
["Behandlingsanlæg, kalk anlæg","m³/h ",25,0]
["Behandlingsanlæg, luddosering","m³/h ",25,0]
["Filteranlæg, åbne filtre, enkelt filtrering, Konstruktioner","m³/h ",50,0]
["Filteranlæg, åbne filtre, enkelt filtrering, Mek./EL","m³/h ",25,0]
["Filteranlæg, åbne filtre, dobbelt filtrering, Konstruktioner","m³/h ",50,0]
["Filteranlæg, åbne filtre, dobbelt filtrering, Mek./EL","m³/h ",25,0]
["Filteranlæg, trykfiltre, enkelt filtrering","m³/h ",25,0]
["Filteranlæg, trykfiltre, dobbelt filtrering","m³/h ",25,0]
["Rentvandsbeholder  insitu støbt","m³",50,0]
["Rentvandsbeholder  element","m³",50,0]
["Udpumpningsanlæg, rentvandspumper på vandværk","m³/h ",25,0]
["Udpumpningsanlæg, frekvensomformer","kW",25,0]
["Udpumpningsanlæg, Hydrofor","liter",25,0]
["Skyllevand-/slamhåndteringsanlæg - lukkede betonbeholdere","m³",50,0]
["Skyllevand-/slamhåndteringsanl. - åbne med faste sider/bund","m³",50,0]
["Skyllevand-/slamhåndteringsanlæg - jordbassiner","m³",50,0]
["Skyllevandsbehandling, inkl. UV-filter mv., Mek./EL","m³/h.",25,0]
["Skyllevandsbehandling, inkl. UV-filter mv., SRO","m³/h.",10,0]
["Nødstrømsanlæg på vandværk","kW",25,0]
["Elanlæg og SRO-anlæg - vandværk, Elanlæg","m³/h.",25,0]
["Elanlæg og SRO-anlæg - vandværk, SRO","m³/h.",10,0]
["Vandværk 6"]
["Beluftningsanlæg, iltningstrappe, Konstruktioner","m³/h ",50,0]
["Beluftningsanlæg, iltningstrappe, Mek./EL","m³/h ",25,0]
["Beluftningsanlæg, ika-beluftning, Konstruktioner","m³/h ",50,0]
["Beluftningsanlæg, ika-beluftning, Mek./EL","m³/h ",25,0]
["Beluftningsanlæg, bundbeluftbning, Konstruktioner","m³/h ",50,0]
["Beluftningsanlæg, bundbeluftbning, Mek./EL","m³/h ",25,0]
["Beluftningsanlæg, rislebakke, Konstruktioner","m³/h ",50,0]
["Beluftningsanlæg, rislebakke, Mek./EL","m³/h ",25,0]
["Beluftningsanlæg, kompressorbeluftning","m³/h ",25,0]
["Beluftningsanlæg, ren ilt","m³/h ",25,0]
["Behandlingsanlæg, kalk anlæg","m³/h ",25,0]
["Behandlingsanlæg, luddosering","m³/h ",25,0]
["Filteranlæg, åbne filtre, enkelt filtrering, Konstruktioner","m³/h ",50,0]
["Filteranlæg, åbne filtre, enkelt filtrering, Mek./EL","m³/h ",25,0]
["Filteranlæg, åbne filtre, dobbelt filtrering, Konstruktioner","m³/h ",50,0]
["Filteranlæg, åbne filtre, dobbelt filtrering, Mek./EL","m³/h ",25,0]
["Filteranlæg, trykfiltre, enkelt filtrering","m³/h ",25,0]
["Filteranlæg, trykfiltre, dobbelt filtrering","m³/h ",25,0]
["Rentvandsbeholder  insitu støbt","m³",50,0]
["Rentvandsbeholder  element","m³",50,0]
["Udpumpningsanlæg, rentvandspumper på vandværk","m³/h ",25,0]
["Udpumpningsanlæg, frekvensomformer","kW",25,0]
["Udpumpningsanlæg, Hydrofor","liter",25,0]
["Skyllevand-/slamhåndteringsanlæg - lukkede betonbeholdere","m³",50,0]
["Skyllevand-/slamhåndteringsanl. - åbne med faste sider/bund","m³",50,0]
["Skyllevand-/slamhåndteringsanlæg - jordbassiner","m³",50,0]
["Skyllevandsbehandling, inkl. UV-filter mv., Mek./EL","m³/h.",25,0]
["Skyllevandsbehandling, inkl. UV-filter mv., SRO","m³/h.",10,0]
["Nødstrømsanlæg på vandværk","kW",25,0]
["Elanlæg og SRO-anlæg - vandværk, Elanlæg","m³/h.",25,0]
["Elanlæg og SRO-anlæg - vandværk, SRO","m³/h.",10,0]
["Vandværk 7"]
["Beluftningsanlæg, iltningstrappe, Konstruktioner","m³/h ",50,0]
["Beluftningsanlæg, iltningstrappe, Mek./EL","m³/h ",25,0]
["Beluftningsanlæg, ika-beluftning, Konstruktioner","m³/h ",50,0]
["Beluftningsanlæg, ika-beluftning, Mek./EL","m³/h ",25,0]
["Beluftningsanlæg, bundbeluftbning, Konstruktioner","m³/h ",50,0]
["Beluftningsanlæg, bundbeluftbning, Mek./EL","m³/h ",25,0]
["Beluftningsanlæg, rislebakke, Konstruktioner","m³/h ",50,0]
["Beluftningsanlæg, rislebakke, Mek./EL","m³/h ",25,0]
["Beluftningsanlæg, kompressorbeluftning","m³/h ",25,0]
["Beluftningsanlæg, ren ilt","m³/h ",25,0]
["Behandlingsanlæg, kalk anlæg","m³/h ",25,0]
["Behandlingsanlæg, luddosering","m³/h ",25,0]
["Filteranlæg, åbne filtre, enkelt filtrering, Konstruktioner","m³/h ",50,0]
["Filteranlæg, åbne filtre, enkelt filtrering, Mek./EL","m³/h ",25,0]
["Filteranlæg, åbne filtre, dobbelt filtrering, Konstruktioner","m³/h ",50,0]
["Filteranlæg, åbne filtre, dobbelt filtrering, Mek./EL","m³/h ",25,0]
["Filteranlæg, trykfiltre, enkelt filtrering","m³/h ",25,0]
["Filteranlæg, trykfiltre, dobbelt filtrering","m³/h ",25,0]
["Rentvandsbeholder  insitu støbt","m³",50,0]
["Rentvandsbeholder  element","m³",50,0]
["Udpumpningsanlæg, rentvandspumper på vandværk","m³/h ",25,0]
["Udpumpningsanlæg, frekvensomformer","kW",25,0]
["Udpumpningsanlæg, Hydrofor","liter",25,0]
["Skyllevand-/slamhåndteringsanlæg - lukkede betonbeholdere","m³",50,0]
["Skyllevand-/slamhåndteringsanl. - åbne med faste sider/bund","m³",50,0]
["Skyllevand-/slamhåndteringsanlæg - jordbassiner","m³",50,0]
["Skyllevandsbehandling, inkl. UV-filter mv., Mek./EL","m³/h.",25,0]
["Skyllevandsbehandling, inkl. UV-filter mv., SRO","m³/h.",10,0]
["Nødstrømsanlæg på vandværk","kW",25,0]
["Elanlæg og SRO-anlæg - vandværk, Elanlæg","m³/h.",25,0]
["Elanlæg og SRO-anlæg - vandværk, SRO","m³/h.",10,0]
["Vandværk 8"]
["Beluftningsanlæg, iltningstrappe, Konstruktioner","m³/h ",50,0]
["Beluftningsanlæg, iltningstrappe, Mek./EL","m³/h ",25,0]
["Beluftningsanlæg, ika-beluftning, Konstruktioner","m³/h ",50,0]
["Beluftningsanlæg, ika-beluftning, Mek./EL","m³/h ",25,0]
["Beluftningsanlæg, bundbeluftbning, Konstruktioner","m³/h ",50,0]
["Beluftningsanlæg, bundbeluftbning, Mek./EL","m³/h ",25,0]
["Beluftningsanlæg, rislebakke, Konstruktioner","m³/h ",50,0]
["Beluftningsanlæg, rislebakke, Mek./EL","m³/h ",25,0]
["Beluftningsanlæg, kompressorbeluftning","m³/h ",25,0]
["Beluftningsanlæg, ren ilt","m³/h ",25,0]
["Behandlingsanlæg, kalk anlæg","m³/h ",25,0]
["Behandlingsanlæg, luddosering","m³/h ",25,0]
["Filteranlæg, åbne filtre, enkelt filtrering, Konstruktioner","m³/h ",50,0]
["Filteranlæg, åbne filtre, enkelt filtrering, Mek./EL","m³/h ",25,0]
["Filteranlæg, åbne filtre, dobbelt filtrering, Konstruktioner","m³/h ",50,0]
["Filteranlæg, åbne filtre, dobbelt filtrering, Mek./EL","m³/h ",25,0]
["Filteranlæg, trykfiltre, enkelt filtrering","m³/h ",25,0]
["Filteranlæg, trykfiltre, dobbelt filtrering","m³/h ",25,0]
["Rentvandsbeholder  insitu støbt","m³",50,0]
["Rentvandsbeholder  element","m³",50,0]
["Udpumpningsanlæg, rentvandspumper på vandværk","m³/h ",25,0]
["Udpumpningsanlæg, frekvensomformer","kW",25,0]
["Udpumpningsanlæg, Hydrofor","liter",25,0]
["Skyllevand-/slamhåndteringsanlæg - lukkede betonbeholdere","m³",50,0]
["Skyllevand-/slamhåndteringsanl. - åbne med faste sider/bund","m³",50,0]
["Skyllevand-/slamhåndteringsanlæg - jordbassiner","m³",50,0]
["Skyllevandsbehandling, inkl. UV-filter mv., Mek./EL","m³/h.",25,0]
["Skyllevandsbehandling, inkl. UV-filter mv., SRO","m³/h.",10,0]
["Nødstrømsanlæg på vandværk","kW",25,0]
["Elanlæg og SRO-anlæg - vandværk, Elanlæg","m³/h.",25,0]
["Elanlæg og SRO-anlæg - vandværk, SRO","m³/h.",10,0]
["Vandværk 9"]
["Beluftningsanlæg, iltningstrappe, Konstruktioner","m³/h ",50,0]
["Beluftningsanlæg, iltningstrappe, Mek./EL","m³/h ",25,0]
["Beluftningsanlæg, ika-beluftning, Konstruktioner","m³/h ",50,0]
["Beluftningsanlæg, ika-beluftning, Mek./EL","m³/h ",25,0]
["Beluftningsanlæg, bundbeluftbning, Konstruktioner","m³/h ",50,0]
["Beluftningsanlæg, bundbeluftbning, Mek./EL","m³/h ",25,0]
["Beluftningsanlæg, rislebakke, Konstruktioner","m³/h ",50,0]
["Beluftningsanlæg, rislebakke, Mek./EL","m³/h ",25,0]
["Beluftningsanlæg, kompressorbeluftning","m³/h ",25,0]
["Beluftningsanlæg, ren ilt","m³/h ",25,0]
["Behandlingsanlæg, kalk anlæg","m³/h ",25,0]
["Behandlingsanlæg, luddosering","m³/h ",25,0]
["Filteranlæg, åbne filtre, enkelt filtrering, Konstruktioner","m³/h ",50,0]
["Filteranlæg, åbne filtre, enkelt filtrering, Mek./EL","m³/h ",25,0]
["Filteranlæg, åbne filtre, dobbelt filtrering, Konstruktioner","m³/h ",50,0]
["Filteranlæg, åbne filtre, dobbelt filtrering, Mek./EL","m³/h ",25,0]
["Filteranlæg, trykfiltre, enkelt filtrering","m³/h ",25,0]
["Filteranlæg, trykfiltre, dobbelt filtrering","m³/h ",25,0]
["Rentvandsbeholder  insitu støbt","m³",50,0]
["Rentvandsbeholder  element","m³",50,0]
["Udpumpningsanlæg, rentvandspumper på vandværk","m³/h ",25,0]
["Udpumpningsanlæg, frekvensomformer","kW",25,0]
["Udpumpningsanlæg, Hydrofor","liter",25,0]
["Skyllevand-/slamhåndteringsanlæg - lukkede betonbeholdere","m³",50,0]
["Skyllevand-/slamhåndteringsanl. - åbne med faste sider/bund","m³",50,0]
["Skyllevand-/slamhåndteringsanlæg - jordbassiner","m³",50,0]
["Skyllevandsbehandling, inkl. UV-filter mv., Mek./EL","m³/h.",25,0]
["Skyllevandsbehandling, inkl. UV-filter mv., SRO","m³/h.",10,0]
["Nødstrømsanlæg på vandværk","kW",25,0]
["Elanlæg og SRO-anlæg - vandværk, Elanlæg","m³/h.",25,0]
["Elanlæg og SRO-anlæg - vandværk, SRO","m³/h.",10,0]
["Vandværk 10"]
["Beluftningsanlæg, iltningstrappe, Konstruktioner","m³/h ",50,0]
["Beluftningsanlæg, iltningstrappe, Mek./EL","m³/h ",25,0]
["Beluftningsanlæg, ika-beluftning, Konstruktioner","m³/h ",50,0]
["Beluftningsanlæg, ika-beluftning, Mek./EL","m³/h ",25,0]
["Beluftningsanlæg, bundbeluftbning, Konstruktioner","m³/h ",50,0]
["Beluftningsanlæg, bundbeluftbning, Mek./EL","m³/h ",25,0]
["Beluftningsanlæg, rislebakke, Konstruktioner","m³/h ",50,0]
["Beluftningsanlæg, rislebakke, Mek./EL","m³/h ",25,0]
["Beluftningsanlæg, kompressorbeluftning","m³/h ",25,0]
["Beluftningsanlæg, ren ilt","m³/h ",25,0]
["Behandlingsanlæg, kalk anlæg","m³/h ",25,0]
["Behandlingsanlæg, luddosering","m³/h ",25,0]
["Filteranlæg, åbne filtre, enkelt filtrering, Konstruktioner","m³/h ",50,0]
["Filteranlæg, åbne filtre, enkelt filtrering, Mek./EL","m³/h ",25,0]
["Filteranlæg, åbne filtre, dobbelt filtrering, Konstruktioner","m³/h ",50,0]
["Filteranlæg, åbne filtre, dobbelt filtrering, Mek./EL","m³/h ",25,0]
["Filteranlæg, trykfiltre, enkelt filtrering","m³/h ",25,0]
["Filteranlæg, trykfiltre, dobbelt filtrering","m³/h ",25,0]
["Rentvandsbeholder  insitu støbt","m³",50,0]
["Rentvandsbeholder  element","m³",50,0]
["Udpumpningsanlæg, rentvandspumper på vandværk","m³/h ",25,0]
["Udpumpningsanlæg, frekvensomformer","kW",25,0]
["Udpumpningsanlæg, Hydrofor","liter",25,0]
["Skyllevand-/slamhåndteringsanlæg - lukkede betonbeholdere","m³",50,0]
["Skyllevand-/slamhåndteringsanl. - åbne med faste sider/bund","m³",50,0]
["Skyllevand-/slamhåndteringsanlæg - jordbassiner","m³",50,0]
["Skyllevandsbehandling, inkl. UV-filter mv., Mek./EL","m³/h.",25,0]
["Skyllevandsbehandling, inkl. UV-filter mv., SRO","m³/h.",10,0]
["Nødstrømsanlæg på vandværk","kW",25,0]
["Elanlæg og SRO-anlæg - vandværk, Elanlæg","m³/h.",25,0]
["Elanlæg og SRO-anlæg - vandværk, SRO","m³/h.",10,0]
["Beluftningsanlæg, iltningstrappe, Konstruktioner","m³/h ",50,0]
["Beluftningsanlæg, iltningstrappe, Mek./EL","m³/h ",25,0]
["Beluftningsanlæg, ika-beluftning, Konstruktioner","m³/h ",50,0]
["Beluftningsanlæg, ika-beluftning, Mek./EL","m³/h ",25,0]
["Beluftningsanlæg, bundbeluftbning, Konstruktioner","m³/h ",50,0]
["Beluftningsanlæg, bundbeluftbning, Mek./EL","m³/h ",25,0]
["Beluftningsanlæg, rislebakke, Konstruktioner","m³/h ",50,0]
["Beluftningsanlæg, rislebakke, Mek./EL","m³/h ",25,0]
["Beluftningsanlæg, kompressorbeluftning","m³/h ",25,0]
["Beluftningsanlæg, ren ilt","m³/h ",25,0]
["Behandlingsanlæg, kalk anlæg","m³/h ",25,0]
["Behandlingsanlæg, luddosering","m³/h ",25,0]
["Filteranlæg, åbne filtre, enkelt filtrering, Konstruktioner","m³/h ",50,0]
["Filteranlæg, åbne filtre, enkelt filtrering, Mek./EL","m³/h ",25,0]
["Filteranlæg, åbne filtre, dobbelt filtrering, Konstruktioner","m³/h ",50,0]
["Filteranlæg, åbne filtre, dobbelt filtrering, Mek./EL","m³/h ",25,0]
["Filteranlæg, trykfiltre, enkelt filtrering","m³/h ",25,0]
["Filteranlæg, trykfiltre, dobbelt filtrering","m³/h ",25,0]
["Rentvandsbeholder  insitu støbt","m³",50,0]
["Rentvandsbeholder  element","m³",50,0]
["Udpumpningsanlæg, rentvandspumper på vandværk","m³/h ",25,0]
["Udpumpningsanlæg, frekvensomformer","kW",25,0]
["Udpumpningsanlæg, Hydrofor","liter",25,0]
["Skyllevand-/slamhåndteringsanlæg - lukkede betonbeholdere","m³",50,0]
["Skyllevand-/slamhåndteringsanl. - åbne med faste sider/bund","m³",50,0]
["Skyllevand-/slamhåndteringsanlæg - jordbassiner","m³",50,0]
["Skyllevandsbehandling, inkl. UV-filter mv., Mek./EL","m³/h.",25,0]
["Skyllevandsbehandling, inkl. UV-filter mv., SRO","m³/h.",10,0]
["Nødstrømsanlæg på vandværk","kW",25,0]
["Elanlæg og SRO-anlæg - vandværk, Elanlæg","m³/h.",25,0]
["Elanlæg og SRO-anlæg - vandværk, SRO","m³/h.",10,0]
["Bygninger"]
["Etageareal vandbehandlingsbygning","m²",75,{"$f":"1614+585","v":2199},{"$f":"1614+585","v":2199}]
["Etageareal kontor og mandskabsfaciliteter","m²",75,330,330]
["Værksted","m²",75,330,330]
["Lager","m²",75,0,0]
["Garage og rørlager","m²",75,50,50]
["Bygning for trykforøgere","m²",75,32,32]
["Laboratorium (bygning, inkl. inventar+udstyr), Konstruktioner","m²",75,0,0]
["Laboratorium (bygning, inkl. inventar+udstyr), Mek./EL","m²",10,0,0]
["Andre"]
["Sikring (terror, hærværk), Mek./EL","stk.",25,0,0]
["Sikring (terror, hærværk), SRO","stk.",10,3,3]
["Sikring, mindre avanceret (hegn, porte), Mek./EL","stk.",25,0,0]
["Sikring, mindre avanceret (hegn, porte), SRO","stk.",10,0,0]
["Sikring, avanceret (hegn, porte og overvågningssystemer), Mek./EL","stk.",25,0,0]
["Sikring, avanceret (hegn, porte og overvågningssystemer), SRO","stk.",10,0,0]
[]
[]
[]
[]
[]
[]
[]
["FEJL"]

{"sheet":"Distributionsanlæg","index":1,"n_rows":182,"n_cols":6,"rows_kept":182,"cut":false,"hidden":false,"merged":[[0,5,1,5],[0,0,1,0],[0,1,1,1],[0,2,1,2],[0,3,1,3],[0,4,1,4]]}
["Distributionsanlæg","Enhed","Standard-levetid","Samlet mængde per 31/12-2014","Samlet mængde per 31/12-2015","Bemærk-ninger"]
[]
["Ledningsnet - Land"]
["Ledningsnet ≤ Ø50 mm","meter",75,33260.649999999994,{"$f":"33260.65+29.4","v":33290.050000000003}]
["Ø 50mm < Ledningsnet ≤ Ø110 mm","meter",75,194216.43357971578,194216.43357971578]
["Ø110 mm < Ledningsnet ≤ Ø 250 mm","meter",75,82220.72642028422,{"$f":"82220.7264202842+7.88","v":82228.60642028421}]
["Ø 250 mm < Ledningsnet ≤ Ø 500mm","meter",75,6952.81,{"$f":"6952.81+3148","v":10100.810000000001}]
["Ledningsnet > Ø 500 mm","meter",75,0,0]
["Støbejernsledninger ≤ Ø50 mm","meter",100,0,0]
["Støbejernsledninger Ø 50mm < Ledningsnet ≤ Ø110 mm","meter",100,1769.5,1769.5]
["Støbejernsledninger Ø110 mm < Ledningsnet ≤ Ø 250 mm","meter",100,12596.199999999999,12596.199999999999]
["Støbejernsledninger Ø 250 mm < Ledningsnet ≤ Ø 500mm","meter",100,5508.2,5508.2]
["Støbejernsledninger Ledningsnet > Ø 500 mm","meter",100,0,0]
["Eternitledninger ≤ Ø50 mm","meter",75,0,0]
["Eternitledninger Ø 50mm < Ledningsnet ≤ Ø110 mm","meter",75,603.29999999999995,603.29999999999995]
["Eternitledninger Ø110 mm < Ledningsnet ≤ Ø 250 mm","meter",75,2,2]
["Eternitledninger Ø 250 mm < Ledningsnet ≤ Ø 500mm","meter",75,0,0]
["Eternitledninger Ledningsnet > Ø 500 mm","meter",75,0,0]
["Skelbrønd, Konstruktioner","stk.",50,0,0]
["Skelbrønd, Mek./EL","stk.",15,0,0]
["Inspektionsbrønd, Konstruktioner","stk.",50,1,1]
["Inspektionsbrønd, Mek./EL","stk.",15,1,1]
["Stik på ledningsnet, Konstruktioner","stk.",75,1333,{"$f":"1333+2","v":1335}]
["Stik på ledningsnet, Mek./EL","stk.",75,0,0]
["Ledningsnet - By",null,null,0]
["Ledningsnet ≤ Ø50 mm","meter",75,8550.3799999999992,8550.3799999999992]
["Ø 50mm < Ledningsnet ≤ Ø110 mm","meter",75,125123.69610137602,{"$f":"125123.696101376+513.48","v":125637.176101376}]
["Ø110 mm < Ledningsnet ≤ Ø 250 mm","meter",75,32809.083898623969,{"$f":"32809.083898624+3","v":32812.083898623998}]
["Ø 250 mm < Ledningsnet ≤ Ø 500mm","meter",75,700.1,700.1]
["Ledningsnet > Ø 500 mm","meter",75,0,0]
["Støbejernsledninger ≤ Ø50 mm","meter",100,0,0]
["Støbejernsledninger Ø 50mm < Ledningsnet ≤ Ø110 mm","meter",100,3045.6699999999996,3045.6699999999996]
["Støbejernsledninger Ø110 mm < Ledningsnet ≤ Ø 250 mm","meter",100,959,959]
["Støbejernsledninger Ø 250 mm < Ledningsnet ≤ Ø 500mm","meter",100,1672.9,1672.9]
["Støbejernsledninger Ledningsnet > Ø 500 mm","meter",100,0,0]
["Eternitledninger ≤ Ø50 mm","meter",75,187.4,187.4]
["Eternitledninger Ø 50mm < Ledningsnet ≤ Ø110 mm","meter",75,3097.35,3097.35]
["Eternitledninger Ø110 mm < Ledningsnet ≤ Ø 250 mm","meter",75,2209.3999999999996,2209.3999999999996]
["Eternitledninger Ø 250 mm < Ledningsnet ≤ Ø 500mm","meter",75,60.400000000000006,60.400000000000006]
["Eternitledninger Ledningsnet > Ø 500 mm","meter",75,0,0]
["Skelbrønd, Konstruktioner","stk.",50,0,0]
["Skelbrønd, Mek./EL","stk.",15,0,0]
["Inspektionsbrønd, Konstruktioner","stk.",50,null,0]
["Inspektionsbrønd, Mek./EL","stk.",15,null,0]
["Stik på ledningsnet, Konstruktioner","stk.",75,7188,{"$f":"7188+29","v":7217}]
["Stik på ledningsnet, Mek./EL","stk.",75,null,0]
["Ledningsnet - City"]
["Ledningsnet ≤ Ø50 mm","meter",75,145.19999999999999,145.19999999999999]
["Ø 50mm < Ledningsnet ≤ Ø110 mm","meter",75,5571.315957478223,5571.315957478223]
["Ø110 mm < Ledningsnet ≤ Ø 250 mm","meter",75,2660.6440425217775,2660.6440425217775]
["Ø 250 mm < Ledningsnet ≤ Ø 500mm","meter",75,0,0]
["Ledningsnet > Ø 500 mm","meter",75,0,0]
["Støbejernsledninger ≤ Ø50 mm","meter",100,0,0]
["Støbejernsledninger Ø 50mm < Ledningsnet ≤ Ø110 mm","meter",100,82.2,82.2]
["Støbejernsledninger Ø110 mm < Ledningsnet ≤ Ø 250 mm","meter",100,4.5,4.5]
["Støbejernsledninger Ø 250 mm < Ledningsnet ≤ Ø 500mm","meter",100,0,0]
["Støbejernsledninger Ledningsnet > Ø 500 mm","meter",100,0,0]
["Eternitledninger ≤ Ø50 mm","meter",75,0,0]
["Eternitledninger Ø 50mm < Ledningsnet ≤ Ø110 mm","meter",75,80.099999999999994,80.099999999999994]
["Eternitledninger Ø110 mm < Ledningsnet ≤ Ø 250 mm","meter",75,388.79999999999995,388.79999999999995]
["Eternitledninger Ø 250 mm < Ledningsnet ≤ Ø 500mm","meter",75,0,0]
["Eternitledninger Ledningsnet > Ø 500 mm","meter",75,0,0]
["Skelbrønd, Konstruktioner","stk.",50,0,0]
["Skelbrønd, Mek./EL","stk.",15,0,0]
["Inspektionsbrønd, Konstruktioner","stk.",50,0,0]
["Inspektionsbrønd, Mek./EL","stk.",15,0,0]
["Stik på ledningsnet, Konstruktioner","stk.",75,467,467]
["Stik på ledningsnet, Mek./EL","stk.",75,0,0]
["Ledningsnet - Indre city"]
["Ledningsnet ≤ Ø50 mm","meter",75,0,0]
["Ø 50mm < Ledningsnet ≤ Ø110 mm","meter",75,0,0]
["Ø110 mm < Ledningsnet ≤ Ø 250 mm","meter",75,0,0]
["Ø 250 mm < Ledningsnet ≤ Ø 500mm","meter",75,0,0]
["Ledningsnet > Ø 500 mm","meter",75,0,0]
["Støbejernsledninger ≤ Ø50 mm","meter",100,0,0]
["Støbejernsledninger Ø 50mm < Ledningsnet ≤ Ø110 mm","meter",100,0,0]
["Støbejernsledninger Ø110 mm < Ledningsnet ≤ Ø 250 mm","meter",100,0,0]
["Støbejernsledninger Ø 250 mm < Ledningsnet ≤ Ø 500mm","meter",100,0,0]
["Støbejernsledninger Ledningsnet > Ø 500 mm","meter",100,0,0]
["Eternitledninger ≤ Ø50 mm","meter",75,0,0]
["Eternitledninger Ø 50mm < Ledningsnet ≤ Ø110 mm","meter",75,0,0]
["Eternitledninger Ø110 mm < Ledningsnet ≤ Ø 250 mm","meter",75,0,0]
["Eternitledninger Ø 250 mm < Ledningsnet ≤ Ø 500mm","meter",75,0,0]
["Eternitledninger Ledningsnet > Ø 500 mm","meter",75,0,0]
["Skelbrønd, Konstruktioner","stk.",50,0,0]
["Skelbrønd, Mek./EL","stk.",15,0,0]
["Inspektionsbrønd, Konstruktioner","stk.",50,0,0]
["Inspektionsbrønd, Mek./EL","stk.",15,0,0]
["Stik på ledningsnet, Konstruktioner","stk.",75,0,0]
["Stik på ledningsnet, Mek./EL","stk.",75,0,0]
["Ventiler"]
["Ventiler på ledningsnet ≤ Ø50 mm","stk.",75,{"$f":"8627+219","v":8846},{"$f":"8627+219+34","v":8880}]
["Ventiler på Ø 50mm < Ledningsnet ≤ Ø110 mm","stk.",75,{"$f":"482+43","v":525},{"$f":"482+43+5","v":530}]
["Ventiler på Ø110 mm < Ledningsnet ≤ Ø 250 mm","stk.",75,{"$f":"467+20","v":487},{"$f":"467+20","v":487}]
["Ventiler på Ø 250 mm < Ledningsnet ≤ Ø 500mm","stk.",75,{"$f":"51+3","v":54},{"$f":"51+3+2","v":56}]
["Ventiler på ledningsnet > Ø 500 mm","stk.",75,0,0]
["Pumpestationer, bygværker og bassiner 1"]
["Pumpestation (inkl. evt. hydrofor)/trykforøger, Konstruktioner","m³/h ",50,12,12]
["Pumpestation (inkl. evt. hydrofor)/trykforøger, Mek./EL","m³/h ",25,12,12]
["Pumpestation (inkl. evt. hydrofor)/trykforøger, SRO","m³/h ",10,12,12]
["Beholderanlæg - højdebeholder","m³",50,0,0]
["Beholderanlæg - vandtårn","m³",50,0,0]
["Pumpestationer, bygværker og bassiner 2"]
["Pumpestation (inkl. evt. hydrofor)/trykforøger, Konstruktioner","m³/h ",50,30,30]
["Pumpestation (inkl. evt. hydrofor)/trykforøger, Mek./EL","m³/h ",25,30,30]
["Pumpestation (inkl. evt. hydrofor)/trykforøger, SRO","m³/h ",10,30,30]
["Beholderanlæg - højdebeholder","m³",50,0,0]
["Beholderanlæg - vandtårn","m³",50,0,0]
["Pumpestationer, bygværker og bassiner 3"]
["Pumpestation (inkl. evt. hydrofor)/trykforøger, Konstruktioner","m³/h ",50,130,130]
["Pumpestation (inkl. evt. hydrofor)/trykforøger, Mek./EL","m³/h ",25,130,130]
["Pumpestation (inkl. evt. hydrofor)/trykforøger, SRO","m³/h ",10,130,130]
["Beholderanlæg - højdebeholder","m³",50,0,0]
["Beholderanlæg - vandtårn","m³",50,0,0]
["Pumpestationer, bygværker og bassiner 4"]
["Pumpestation (inkl. evt. hydrofor)/trykforøger, Konstruktioner","m³/h ",50,42,42]
["Pumpestation (inkl. evt. hydrofor)/trykforøger, Mek./EL","m³/h ",25,42,42]
["Pumpestation (inkl. evt. hydrofor)/trykforøger, SRO","m³/h ",10,42,42]
["Beholderanlæg - højdebeholder","m³",50,0,0]
["Beholderanlæg - vandtårn","m³",50,0,0]
["Pumpestationer, bygværker og bassiner 5"]
["Pumpestation (inkl. evt. hydrofor)/trykforøger, Konstruktioner","m³/h ",50,320,320]
["Pumpestation (inkl. evt. hydrofor)/trykforøger, Mek./EL","m³/h ",25,320,320]
["Pumpestation (inkl. evt. hydrofor)/trykforøger, SRO","m³/h ",10,320,320]
["Beholderanlæg - højdebeholder","m³",50,0,0]
["Beholderanlæg - vandtårn","m³",50,0,0]
["Pumpestationer, bygværker og bassiner 6"]
["Pumpestation (inkl. evt. hydrofor)/trykforøger, Konstruktioner","m³/h ",50,60,60]
["Pumpestation (inkl. evt. hydrofor)/trykforøger, Mek./EL","m³/h ",25,60,60]
["Pumpestation (inkl. evt. hydrofor)/trykforøger, SRO","m³/h ",10,60,60]
["Beholderanlæg - højdebeholder","m³",50,0,0]
["Beholderanlæg - vandtårn","m³",50,0,0]
["Pumpestationer, bygværker og bassiner 7"]
["Pumpestation (inkl. evt. hydrofor)/trykforøger, Konstruktioner","m³/h ",50,60,60]
["Pumpestation (inkl. evt. hydrofor)/trykforøger, Mek./EL","m³/h ",25,60,60]
["Pumpestation (inkl. evt. hydrofor)/trykforøger, SRO","m³/h ",10,60,60]
["Beholderanlæg - højdebeholder","m³",50,0,0]
["Beholderanlæg - vandtårn","m³",50,0,0]
["Pumpestationer, bygværker og bassiner 8"]
["Pumpestation (inkl. evt. hydrofor)/trykforøger, Konstruktioner","m³/h ",50,6,6]
["Pumpestation (inkl. evt. hydrofor)/trykforøger, Mek./EL","m³/h ",25,6,6]
["Pumpestation (inkl. evt. hydrofor)/trykforøger, SRO","m³/h ",10,6,6]
["Beholderanlæg - højdebeholder","m³",50,0,0]
["Beholderanlæg - vandtårn","m³",50,0,0]
["Pumpestationer, bygværker og bassiner 9"]
["Pumpestation (inkl. evt. hydrofor)/trykforøger, Konstruktioner","m³/h ",50,0]
["Pumpestation (inkl. evt. hydrofor)/trykforøger, Mek./EL","m³/h ",25,0]
["Pumpestation (inkl. evt. hydrofor)/trykforøger, SRO","m³/h ",10,0]
["Beholderanlæg - højdebeholder","m³",50,0]
["Beholderanlæg - vandtårn","m³",50,0]
["Pumpestationer, bygværker og bassiner 10"]
["Pumpestation (inkl. evt. hydrofor)/trykforøger, Konstruktioner","m³/h ",50,0]
["Pumpestation (inkl. evt. hydrofor)/trykforøger, Mek./EL","m³/h ",25,0]
["Pumpestation (inkl. evt. hydrofor)/trykforøger, SRO","m³/h ",10,0]
["Beholderanlæg - højdebeholder","m³",50,0]
["Beholderanlæg - vandtårn","m³",50,0]
["Pumpestation (inkl. evt. hydrofor)/trykforøger, Konstruktioner","m³/h ",50,0]
["Pumpestation (inkl. evt. hydrofor)/trykforøger, Mek./EL","m³/h ",25,0]
["Pumpestation (inkl. evt. hydrofor)/trykforøger, SRO","m³/h ",10,0]
["Beholderanlæg - højdebeholder","m³",50,0]
["Beholderanlæg - vandtårn","m³",50,0]
["Andre"]
["Afregningsmålere, mekaniske, ","stk.",8,8612,198]
["Afregningsmålere, elektroniske ≤ Ø 110mm (Qn 10)","stk.",10,8732,8671]
["Afregningsmålere, elektroniske > Ø110 mm","stk.",10,0,12]
["SRO-brønd/kvarterbrønd/sektionsbrønd, Konstruktioner","stk.",50,0,0]
["SRO-brønd/kvarterbrønd/sektionsbrønd, Mek./EL","stk.",15,0,0]
["SRO-brønd/kvarterbrønd/sektionsbrønd, SRO","stk.",10,0,0]
[]
[]
[]
[]
[]
[]
[]
[]
[]
[]
[]
[]
[]
["FEJL"]

{"sheet":"Fællesfunktionsanlæg","index":2,"n_rows":11,"n_cols":6,"rows_kept":11,"cut":false,"hidden":false,"merged":[[0,5,1,5],[0,0,1,0],[0,1,1,1],[0,2,1,2],[0,3,1,3],[0,4,1,4]]}
["Fællesfunktionsanlæg","Enhed","Standard-levetid","Samlet mængde per 31/12-2014","Samlet mængde per 31/12-2015","Bemærk-ninger"]
[]
["Andre"]
["Køretøjer, personbil","stk.",5,1,{"$f":"1-1","v":0}]
["Køretøjer, små lastvogne (< 3.500 kg.)","stk.",5,5,{"$f":"5-1","v":4}]
["Køretøjer, store lastvogne (> 3.500 kg.)","stk.",5,0,0]
["Køretøjer, entreprenørmaskiner","stk.",5,0,0]
["Øvrige"]
["Solcelleanlæg","KWh",25,0,0]
["EDB, tablets og navigationsudstyr","stk.",5,{"$f":"1+2","v":3},{"$f":"1+2","v":3}]
["Elektroniske kort","stk.",5,0,0]

{"sheet":"Drop downliste","index":3,"n_rows":13,"n_cols":11,"rows_kept":13,"cut":false,"hidden":true,"merged":[]}
[]
[null,"datakvalitet","Serviceselskab","Overheads","Infrastrukturomlægninger","Infrastruktur per år","år 1","år 2","år 3","år 4","år 5"]
[null,null,null,null,null,null,2010,2011,2012,2013,2014]
[null,1,"ja","Full-cost","ja",0.1]
[null,2,"nej","Direct-cost","nej",0.2]
[null,3,null,"Nøgletalsfordeling",null,0.3]
[null,null,null,"Activity based cost",null,0.4]
[null,null,null,"Andet",null,0.5]
[null,null,null,null,null,0.6]
[null,null,null,null,null,0.7]
[null,null,null,null,null,0.8]
[null,null,null,null,null,0.9]
[null,null,null,null,null,1]